bitfinex/quotes_ETHUSD_20251126
["timestamp","ask_amount","ask_price","bid_price","bid_amount"]
[1764122423360,0.4735,2973.4,2973.3,0.001]
[1764122423692,0.9529,2973.4,2973.3,0.001]
[1764122426857,4.31605329,2973.4,2973.3,0.001]
[1764122428270,5.2546474,2973.4,2973.3,0.001]
[1764122428988,12.29558608,2973.4,2973.0,0.001]
[1764122429191,0.3015,2973.1,2973.0,0.001]
[1764122430157,0.6924,2973.4,2973.0,0.4759]
[1764122430357,0.213,2973.4,2973.0,0.4759]
[1764122430577,0.4713,2973.1,2973.0,0.001]
[1764122434890,0.9507,2973.1,2973.0,0.001]
[1764122435795,4.31419265,2973.1,2973.0,0.001]
[1764122438964,0.9507,2973.1,2973.0,0.001]
[1764122439396,0.4794,2973.4,2973.0,0.4759]
[1764122439600,0.002,2973.3,2973.1,0.4749]
[1764122440423,0.002,2973.3,2973.1,3.83839189]
[1764122441123,0.002,2973.3,2973.2,0.4749]
[1764122442112,0.002,2973.3,2973.2,0.9613]
[1764122442314,0.002,2973.3,2973.2,4.32467952]
[1764122444705,0.002,2973.3,2973.2,3.83827952]
[1764122445600,0.9527,2973.3,2973.0,0.001]
[1764122445926,0.4696,2973.1,2973.0,0.001]
[1764122447128,0.002,2973.3,2973.0,0.4759]
[1764122447830,0.4814,2973.3,2973.0,3.36449661]
[1764122449411,0.4814,2973.3,2973.0,0.001]
[1764122450043,0.4713,2973.1,2973.0,0.001]
[1764122450416,0.9711,2973.1,2973.0,0.001]
[1764122452241,4.33459265,2973.1,2973.0,0.001]
[1764122452815,4.54759265,2973.1,2973.0,0.001]
[1764122455013,0.6843,2973.1,2973.0,0.001]
[1764122455323,0.002,2973.3,2973.0,0.4796]
[1764122455941,0.002,2973.3,2973.0,3.84317259]
[1764122457720,0.002,2973.3,2973.0,3.36457259]
[1764122458232,0.002,2973.3,2973.0,0.001]
[1764122458639,0.5018,2973.3,2973.0,0.001]
[1764122459656,0.002,2973.3,2973.2,0.4786]
[1764122460218,0.002,2973.3,2973.2,3.84197952]
[1764122460545,0.002,2973.3,2973.2,4.30727952]
[1764122461118,0.002,2973.3,2973.2,3.84197952]
[1764122462316,0.002,2973.3,2973.2,4.30287952]
[1764122463133,0.002,2973.3,2973.2,0.4786]
[1764122463336,0.002,2973.3,2973.1,3.36349265]
[1764122463534,0.002,2973.3,2973.0,3.36459589]
[1764122463735,0.002,2973.3,2973.1,0.213]
[1764122464338,0.002,2973.3,2973.2,3.36337952]
[1764122465228,0.002,2973.3,2973.2,3.82657952]
[1764122469352,0.002,2973.3,2973.2,4.28747952]
[1764122473872,0.9497,2973.3,2973.1,0.401]
[1764122474061,0.7762,2973.2,2973.1,0.401]
[1764122474859,0.002,2973.3,2973.2,3.36337952]
[1764122475058,0.002,2973.3,2973.1,4.22769008]
[1764122475059,0.002,2973.3,2973.1,0.401]
[1764122475298,0.4641,2973.2,2973.1,0.614]
[1764122475457,0.4641,2973.2,2973.1,3.97749265]
[1764122475901,0.002,2973.3,2973.1,4.44069265]
[1764122476199,0.002,2973.3,2973.1,3.97749265]
[1764122476759,0.4641,2973.2,2973.1,3.97749265]
[1764122477155,0.4641,2973.2,2973.1,0.614]
[1764122477891,0.4641,2973.2,2973.1,0.401]
[1764122478137,0.9477,2973.2,2973.1,0.401]
[1764122478933,0.002,2973.3,2973.1,4.22769265]
[1764122479134,0.9477,2973.2,2973.1,0.401]
[1764122482542,0.4641,2973.2,2973.1,3.76449265]
[1764122482856,0.002,2973.3,2973.1,3.76449265]
[1764122483255,0.4758,2973.2,2973.1,3.76449265]
[1764122483559,0.002,2973.3,2973.1,0.401]
[1764122483968,0.4758,2973.2,2973.1,0.401]
[1764122484330,0.9402,2973.2,2973.1,0.401]
[1764122484757,4.30357952,2973.2,2973.1,0.401]
[1764122485073,0.9402,2973.2,2973.1,0.401]
[1764122485656,4.30357952,2973.2,2973.1,0.401]
[1764122486755,0.9402,2973.2,2973.1,0.401]
[1764122486926,4.30357952,2973.2,2973.1,0.401]
[1764122487560,4.6187653,2973.2,2973.1,0.401]
[1764122490255,0.4758,2973.2,2973.1,0.401]
[1764122491536,0.002,2973.3,2973.1,4.68987548]
[1764122491773,0.002,2973.3,2973.2,0.9254]
[1764122492564,0.002,2973.3,2973.2,0.4515]
[1764122493066,0.002,2973.3,2973.2,1.1384]
[1764122493270,0.002,2973.3,2973.2,4.50177952]
[1764122495449,0.002,2973.3,2973.2,4.90728352]
[1764122495637,0.002,2973.3,2973.2,5.73287763]
[1764122496043,0.002,2973.3,2973.2,5.63287763]
[1764122496888,0.002,2973.3,2973.2,4.54047363]
[1764122497058,0.002,2973.3,2973.2,4.75347363]
[1764122497878,0.002,2973.3,2973.2,0.213]
[1764122497879,0.4778,2973.3,2973.2,0.213]
[1764122498084,0.9422,2973.3,2973.1,0.401]
[1764122498295,0.3024,2973.2,2973.1,0.401]
[1764122498473,0.7668,2973.2,2973.1,0.401]
[1764122498779,0.3024,2973.2,2973.1,0.401]
[1764122498951,0.7668,2973.2,2973.1,0.401]
[1764122499146,0.002,2973.3,2973.1,4.21597744]
[1764122499764,0.002,2973.3,2973.1,3.76447744]
[1764122499966,0.4758,2973.2,2973.1,0.401]
[1764122500572,0.9402,2973.2,2973.1,0.401]
[1764122500881,0.4758,2973.2,2973.1,0.401]
[1764122504480,0.002,2973.3,2973.1,4.21597063]
[1764122506181,0.002,2973.3,2973.2,0.4515]
[1764122506353,0.002,2973.3,2973.2,1.1384]
[1764122506550,0.002,2973.3,2973.2,0.6645]
[1764122507381,0.4778,2973.3,2973.2,0.213]
[1764122507580,0.9422,2973.3,2973.1,0.614]
[1764122507781,0.3024,2973.2,2973.1,0.614]
[1764122508079,0.002,2973.3,2973.1,3.97749265]
[1764122508292,0.002,2973.3,2973.1,0.401]
[1764122508293,0.4758,2973.2,2973.1,0.401]
[1764122508801,0.9402,2973.2,2973.1,0.401]
[1764122510488,4.30357952,2973.2,2973.1,0.401]
[1764122511077,0.9402,2973.2,2973.1,0.401]
[1764122511593,4.30357952,2973.2,2973.1,0.401]
[1764122511820,0.9402,2973.2,2973.1,0.401]
[1764122512575,4.30357952,2973.2,2973.1,0.401]
[1764122513807,0.4758,2973.2,2973.1,0.401]
[1764122514211,0.002,2973.3,2973.1,0.8885]
[1764122514705,0.002,2973.3,2973.1,0.401]
[1764122515204,0.495,2973.2,2973.1,0.401]
[1764122519921,0.002,2973.3,2973.1,1.3784]
[1764122520131,0.002,2973.3,2973.2,0.9774]
[1764122520510,0.002,2973.3,2973.2,0.4875]
[1764122521583,0.002,2973.3,2973.2,4.55807952]
[1764122521830,0.002,2973.3,2973.2,4.96358352]
[1764122522015,0.002,2973.3,2973.2,5.92390426]
[1764122522196,0.002,2973.3,2973.2,5.82390426]
[1764122522698,0.002,2973.3,2973.2,5.92390426]
[1764122525193,0.002,2973.3,2973.2,5.61090426]
[1764122525616,0.002,2973.3,2973.2,5.82390426]
[1764122526204,0.002,2973.3,2973.2,4.71120026]
[1764122526404,0.002,2973.3,2973.2,5.07067363]
[1764122526591,0.002,2973.3,2973.2,4.55807952]
[1764122527649,0.002,2973.3,2973.2,4.34507952]
[1764122527850,0.002,2973.3,2973.2,3.85087952]
[1764122528055,0.002,2973.3,2973.2,4.55807952]
[1764122528619,0.002,2973.3,2973.2,4.96358352]
[1764122532450,0.002,2973.3,2973.2,4.06387952]
[1764122533333,0.4987,2973.3,2973.2,3.36337952]
[1764122533528,0.4987,2973.3,2973.1,3.76444613]
[1764122533736,0.295,2973.2,2973.1,3.76444613]
[1764122533956,0.295,2973.2,2973.1,3.97744613]
[1764122534258,0.295,2973.2,2973.1,0.614]
[1764122534472,0.295,2973.2,2973.1,0.401]
[1764122534473,0.7508,2973.2,2973.1,0.401]
[1764122538038,0.002,2973.3,2973.2,3.36337952]
[1764122538263,0.002,2973.3,2973.2,3.85907952]
[1764122539768,0.002,2973.3,2973.2,4.07207952]
[1764122540581,0.002,2973.3,2973.2,4.54517952]
[1764122540938,0.002,2973.3,2973.2,5.80991142]
[1764122541138,0.002,2973.3,2973.2,5.77627763]
[1764122541332,0.002,2973.3,2973.2,5.67627763]
[1764122541573,0.002,2973.3,2973.2,5.77627763]
[1764122542110,0.002,2973.3,2973.2,5.30317763]
[1764122542286,0.002,2973.3,2973.2,5.77627763]
[1764122542680,0.002,2973.3,2973.2,5.09017763]
[1764122542863,0.002,2973.3,2973.2,5.77627763]
[1764122543189,0.002,2973.3,2973.2,5.97587763]
[1764122543687,0.002,2973.3,2973.2,5.87587763]
[1764122544460,0.002,2973.3,2973.2,5.97587763]
[1764122545060,0.002,2973.3,2973.2,5.87587763]
[1764122545261,0.002,2973.3,2973.2,5.97587763]
[1764122545897,0.002,2973.3,2973.2,5.90951142]
[1764122546103,0.002,2973.3,2973.2,6.00951142]
[1764122549075,0.002,2973.3,2973.2,5.43641142]
[1764122549295,0.002,2973.3,2973.2,4.99727363]
[1764122550173,0.002,2973.3,2973.2,4.78427363]
[1764122550574,0.002,2973.3,2973.2,4.99727363]
[1764122550779,0.002,2973.3,2973.2,4.79767363]
[1764122551783,0.002,2973.3,2973.2,5.27077363]
[1764122553200,0.002,2973.3,2973.2,5.37077363]
[1764122553399,0.002,2973.3,2973.2,5.27077363]
[1764122553605,0.002,2973.3,2973.2,5.37077363]
[1764122554067,0.002,2973.3,2973.2,5.50551296]
[1764122555597,0.002,2973.3,2973.2,5.29251296]
[1764122555785,0.002,2973.3,2973.2,5.50551296]
[1764122557476,0.002,2973.3,2973.2,5.94465075]
[1764122559573,0.002,2973.3,2973.2,7.72671848]
[1764122559814,0.002,2973.3,2973.2,5.81101696]
[1764122559970,0.002,2973.3,2973.2,5.91101696]
[1764122560376,0.002,2973.3,2973.2,5.69801696]
[1764122560674,0.002,2973.3,2973.2,5.91101696]
[1764122560876,0.002,2973.3,2973.2,5.94465075]
[1764122561574,0.002,2973.3,2973.2,5.22491696]
[1764122561879,0.002,2973.3,2973.2,5.47155075]
[1764122562202,0.002,2973.3,2973.2,5.33791696]
[1764122562500,0.4815,2973.3,2973.2,4.84221696]
[1764122563000,0.4815,2973.3,2973.2,4.11662285]
[1764122563168,0.4815,2973.3,2973.2,4.84221696]
[1764122563772,1e-08,2974.2,2973.5,0.4679]
[1764122564010,1e-08,2974.5,2974.4,0.973404]
[1764122564217,1e-08,2974.5,2974.4,4.04830552]
[1764122564388,1e-08,2974.5,2974.4,2.38509811]
[1764122564592,1e-08,2974.5,2974.4,5.88177839]
[1764122564789,1e-08,2974.5,2974.4,8.27057991]
[1764122565312,1e-08,2974.5,2974.4,5.88177839]
[1764122565512,0.002,2974.7,2974.6,9.18646011]
[1764122565715,0.002,2974.7,2974.6,8.42267623]
[1764122566303,0.002,2974.7,2974.6,8.63567623]
[1764122566693,0.002,2974.7,2974.6,11.99747277]
[1764122566898,0.002,2974.7,2974.6,17.02816077]
[1764122567119,0.002,2974.7,2974.6,14.27481677]
[1764122567288,0.002,2974.7,2974.6,16.64765744]
[1764122567489,0.002,2974.7,2974.6,14.27481677]
[1764122567717,0.002,2974.7,2974.6,14.03666077]
[1764122568393,0.002,2974.7,2974.6,16.40822124]
[1764122568604,1e-08,2975.5,2975.4,0.4679]
[1764122568806,1e-08,2975.5,2975.4,1.186404]
[1764122569007,1e-08,2975.5,2975.4,1.659504]
[1764122570015,1e-08,2975.5,2975.4,1.186404]
[1764122570215,1e-08,2975.5,2975.4,2.130204]
[1764122570426,1e-08,2975.5,2975.4,3.29685119]
[1764122570725,1e-08,2975.5,2975.4,6.65774384]
[1764122571599,1e-08,2975.5,2975.4,6.21669076]
[1764122572005,1e-08,2975.5,2975.4,6.00369076]
[1764122572210,1e-08,2975.5,2975.4,6.21669076]
[1764122573117,1e-08,2975.5,2975.4,4.96269076]
[1764122573433,1e-08,2975.5,2975.4,4.29948676]
[1764122573634,1e-08,2975.5,2975.4,4.70499076]
[1764122573810,0.47450001,2975.5,2975.4,4.70499076]
[1764122574017,1e-08,2975.5,2975.4,4.70499076]
[1764122574249,1e-08,2975.5,2975.4,4.80499076]
[1764122575434,1e-08,2975.5,2975.4,4.70499076]
[1764122575435,0.96040001,2975.5,2975.4,4.70499076]
[1764122576207,0.96040001,2975.5,2975.4,4.70599076]
[1764122576817,0.47450001,2975.5,2975.4,4.70599076]
[1764122578012,0.47450001,2975.5,2975.4,3.76739665]
[1764122578212,0.47450001,2975.5,2975.4,3.98039665]
[1764122578417,0.47450001,2975.5,2975.4,4.70599076]
[1764122579723,0.47450001,2975.5,2975.4,4.08748676]
[1764122579724,0.96040001,2975.5,2975.4,4.08748676]
[1764122579924,0.96040001,2975.5,2975.4,4.30048676]
[1764122580139,0.47450001,2975.5,2975.4,4.30048676]
[1764122580804,0.47080309,2975.5,2975.4,4.30048676]
[1764122581035,0.4879,2975.8,2975.5,0.72559411]
[1764122581236,0.4658,2975.8,2975.5,0.72559411]
[1764122581432,0.4597,2975.6,2975.5,0.72559411]
[1764122582334,0.9235,2975.6,2975.5,0.72559411]
[1764122583010,0.9235,2975.6,2975.5,4.08637381]
[1764122591950,0.9235,2975.6,2975.4,3.57489265]
[1764122591951,0.9235,2975.6,2975.4,3.3618894]
[1764122592152,0.7319,2975.5,2975.4,3.3618894]
[1764122593355,0.7319,2975.5,2975.4,0.001]
[1764122594233,0.4578,2975.3,2975.2,3.36111858]
[1764122594624,0.9216,2975.3,2975.2,3.36111858]
[1764122594824,0.9216,2975.3,2975.2,3.36211858]
[1764122596426,0.002,2975.6,2975.2,6.72323716]
[1764122596640,0.002,2975.6,2975.3,0.72559411]
[1764122597057,0.4597,2975.4,2975.3,0.72559411]
[1764122598261,0.002,2975.6,2975.4,6.7217853]
[1764122598424,0.002,2975.6,2975.4,7.1794853]
[1764122598829,0.4597,2975.5,2975.4,3.36089265]
[1764122599662,0.002,2975.6,2975.4,6.7217853]
[1764122600658,0.002,2975.6,2975.5,0.213]
[1764122601050,0.4729,2975.6,2975.5,0.213]
[1764122602462,0.4729,2975.6,2975.5,3.5737797]
[1764122607178,0.002,2975.6,2975.5,3.5737797]
[1764122607577,0.002,2975.6,2975.2,0.001]
[1764122607578,0.9434,2975.6,2975.2,0.001]
[1764122607885,0.4687,2975.3,2975.2,4.0876275]
[1764122608577,0.9392,2975.3,2975.2,3.36203339]
[1764122609154,0.9392,2975.3,2975.2,0.001]
[1764122615577,0.4687,2975.3,2975.2,0.001]
[1764122617318,0.4725,2975.6,2975.2,0.001]
[1764122617614,0.4725,2975.6,2975.3,6.72201122]
[1764122617807,0.4725,2975.6,2975.3,3.36100561]
[1764122618002,0.4709,2975.4,2975.3,3.36100561]
[1764122618597,0.9414,2975.4,2975.3,3.36100561]
[1764122619523,0.9414,2975.4,2975.2,3.36210869]
[1764122619718,0.7245,2975.3,2975.2,3.36210869]
[1764122620521,0.002,2975.6,2975.2,7.18512727]
[1764122620823,0.4725,2975.6,2975.2,7.18512727]
[1764122621714,0.4709,2975.3,2975.2,3.36210869]
[1764122623025,0.4725,2975.6,2975.2,7.18512727]
[1764122624223,0.4725,2975.6,2975.2,6.72322727]
[1764122624925,0.4725,2975.6,2975.2,3.36210869]
[1764122624926,0.4709,2975.3,2975.2,3.36210869]
[1764122626428,0.0709,2975.3,2975.2,0.001]
[1764122627420,0.4725,2975.6,2975.2,0.4629]
[1764122627726,0.4725,2975.6,2975.2,0.001]
[1764122630909,0.0039,2975.3,2975.2,0.001]
[1764122633205,0.394,2975.3,2975.2,0.001]
[1764122634135,0.0039,2975.3,2975.2,0.001]
[1764122634436,0.002,2975.6,2975.2,0.9605]
[1764122635330,0.002,2975.6,2975.3,0.03361005]
[1764122635531,0.002,2975.6,2975.2,0.4989]
[1764122635763,0.002,2975.6,2975.3,0.4979]
[1764122635937,0.002,2975.6,2975.2,0.001]
[1764122636128,0.396,2975.6,2975.2,0.001]
[1764122636716,0.0039,2975.3,2975.2,0.001]
[1764122637338,0.002,2975.6,2975.2,0.9605]
[1764122637503,0.002,2975.6,2975.2,0.4626]
[1764122637836,0.396,2975.6,2975.2,0.4626]
[1764122639538,0.396,2975.6,2975.3,6.72201122]
[1764122640344,0.002,2975.6,2975.3,6.72201122]
[1764122640540,0.002,2975.6,2975.3,7.21991122]
[1764122641726,0.396,2975.6,2975.2,0.001]
[1764122642132,0.0039,2975.3,2975.2,0.001]
[1764122642617,0.394,2975.3,2975.2,0.001]
[1764122646147,0.396,2975.3,2975.2,0.001]
[1764122646526,0.002,2975.3,2975.2,0.001]
[1764122647062,0.002,2975.3,2975.2,0.4665]
[1764122648629,0.002,2975.3,2975.2,3.82761858]
[1764122649041,0.0059,2975.3,2975.2,3.36211858]
[1764122649767,0.396,2975.3,2975.2,0.001]
[1764122650637,0.71107376,2975.3,2975.2,0.001]
[1764122650859,4.07207937,2975.3,2975.2,0.001]
[1764122651253,4.79767348,2975.3,2975.2,0.001]
[1764122655136,1.65356787,2975.3,2975.2,0.001]
[1764122655366,5.01457348,2975.3,2975.2,0.001]
[1764122657168,14.20334548,2975.3,2975.2,0.001]
[1764122657566,14.20334548,2975.3,2975.1,0.001]
[1764122657567,14.06432348,2975.3,2975.1,0.001]
[1764122657743,14.06432348,2975.3,2974.9,0.001]
[1764122657744,0.0031,2974.7,2973.1,0.1845]
[1764122657934,0.4749,2973.9,2973.1,0.001]
[1764122658138,0.6879,2973.9,2973.1,0.001]
[1764122658340,0.2074,2973.8,2973.1,3.54794633]
[1764122658664,0.6879,2973.9,2973.2,0.491]
[1764122658968,0.6067,2973.9,2973.2,0.491]
[1764122659150,0.6067,2973.9,2973.3,6.7265328]
[1764122659349,0.6067,2973.9,2973.3,3.3632664]
[1764122659740,0.6067,2973.9,2973.3,6.7265328]
[1764122661080,0.493,2973.8,2973.3,3.3632664]
[1764122662582,0.493,2973.8,2973.3,6.7265328]
[1764122662786,0.493,2973.8,2973.3,7.1790328]
[1764122663077,0.3993,2973.9,2973.4,0.4525]
[1764122663282,0.493,2973.8,2973.3,6.7265328]
[1764122663648,0.493,2973.8,2973.3,7.1790328]
[1764122663868,0.213,2973.9,2973.7,0.4621]
[1764122664156,0.4943,2973.8,2973.3,3.3632664]
[1764122664691,0.4943,2973.8,2973.3,6.7265328]
[1764122664864,0.4943,2973.8,2973.3,3.8157664]
[1764122665252,0.4943,2973.8,2973.3,3.3632664]
[1764122665975,0.4943,2973.8,2973.2,3.36335965]
[1764122666175,0.4943,2973.8,2973.1,4.00038392]
[1764122666176,0.0049,2973.3,2973.1,0.001]
[1764122666359,7.21981196,2973.8,2973.1,0.001]
[1764122666360,0.0049,2973.2,2973.1,0.001]
[1764122667382,0.4943,2973.8,2973.1,7.8296853]
[1764122667549,0.4943,2973.8,2973.3,0.4621]
[1764122667750,0.4943,2973.8,2973.1,0.1881]
[1764122667954,0.0049,2973.2,2973.1,0.001]
[1764122668680,3.85767952,2973.2,2973.1,0.001]
[1764122669050,0.4943,2973.2,2973.1,0.001]
[1764122669953,3.85767952,2973.2,2973.1,0.001]
[1764122670376,0.4943,2973.2,2973.1,0.001]
[1764122670685,3.85767952,2973.2,2973.1,0.001]
[1764122671249,0.4943,2973.2,2973.1,0.001]
[1764122671680,3.85767952,2973.2,2973.1,0.001]
[1764122672186,0.4943,2973.2,2973.1,0.001]
[1764122672575,3.85767952,2973.2,2973.1,0.001]
[1764122676202,0.0049,2973.2,2973.1,0.001]
[1764122676353,0.213,2973.2,2973.1,0.4631]
[1764122677399,0.213,2973.2,2973.1,0.9156]
[1764122677580,0.213,2973.5,2973.1,0.9156]
[1764122677782,0.213,2973.5,2973.1,0.4631]
[1764122677985,0.7123,2973.5,2973.1,0.4631]
[1764122678186,0.7123,2973.5,2973.1,0.001]
[1764122678505,0.4993,2973.4,2973.1,0.001]
[1764122681459,0.213,2973.5,2973.1,0.001]
[1764122681898,0.7123,2973.5,2973.1,0.001]
[1764122682588,0.4993,2973.4,2973.1,0.001]
[1764122682783,0.213,2973.5,2973.1,0.001]
[1764122682784,0.7123,2973.5,2973.1,0.001]
[1764122685379,0.396,2973.2,2973.1,0.001]
[1764122685794,0.8943,2973.2,2973.1,0.001]
[1764122686109,3.57604018,2973.5,2973.1,0.4631]
[1764122686308,0.4993,2973.4,2973.1,0.4631]
[1764122689115,0.4993,2973.4,2973.1,0.001]
[1764122689116,3.86246751,2973.4,2973.1,0.001]
[1764122689412,0.396,2973.2,2973.1,0.001]
[1764122691420,3.86246932,2973.4,2973.1,0.001]
[1764122691989,0.396,2973.2,2973.1,0.001]
[1764122693543,4.22687952,2973.2,2973.1,0.001]
[1764122693835,4.54191026,2973.2,2973.1,0.001]
[1764122699053,4.54216502,2973.2,2973.1,0.001]
[1764122700348,0.7112855,2973.2,2973.1,0.001]
[1764122700530,3.67866502,2973.2,2973.1,0.4712]
[1764122700931,0.3152855,2973.2,2973.1,0.4712]
[1764122702431,0.213,2973.5,2973.1,1.1458]
[1764122702638,0.213,2973.5,2973.4,0.4509]
[1764122702823,0.52819962,2973.5,2973.4,0.4509]
[1764122703029,0.213,2973.9,2973.4,0.939]
[1764122703265,0.213,2973.9,2973.8,0.4509]
[1764122703472,0.213,2973.9,2973.5,0.4881]
[1764122703634,0.213,2973.9,2973.8,0.4509]
[1764122703957,0.31506163,2974.0,2973.8,0.939]
[1764122704158,0.31506163,2973.9,2973.8,0.939]
[1764122704454,0.72559411,2974.0,2973.9,0.4509]
[1764122704631,1.04060231,2974.0,2973.9,0.4509]
[1764122704839,4.84137709,2974.0,2973.4,3.36310501]
[1764122705027,0.3150082,2973.9,2973.4,3.36310501]
[1764122705226,4.52636889,2974.0,2973.5,0.4881]
[1764122705443,0.72559411,2974.0,2973.5,0.4881]
[1764122705959,4.08807689,2974.0,2973.5,0.4881]
[1764122706540,3.57537774,2974.1,2973.5,3.85109789]
[1764122706740,0.31494697,2974.0,2973.9,0.4509]
[1764122706941,3.57537738,2974.1,2973.6,0.4881]
[1764122706942,0.213,2974.1,2973.6,0.4881]
[1764122707131,0.213,2974.1,2974.0,0.4509]
[1764122707340,0.52787847,2974.1,2974.0,0.4509]
[1764122707623,0.96616711,2974.1,2973.6,0.4881]
[1764122707828,7.83732466,2974.1,2973.4,0.4881]
[1764122708172,4.47496233,2974.1,2973.4,0.4881]
[1764122708321,4.47496233,2974.1,2973.4,3.85123075]
[1764122708953,4.47496233,2974.1,2973.4,0.4881]
[1764122709139,7.83732466,2974.1,2973.4,0.4881]
[1764122709337,4.47496233,2974.1,2973.4,3.85125041]
[1764122709865,7.83732466,2974.1,2973.4,0.4881]
[1764122710562,4.01366233,2974.1,2973.4,0.4881]
[1764122711164,7.37602466,2974.1,2973.4,0.4881]
[1764122711352,7.83732466,2974.1,2973.4,0.4881]
[1764122711755,0.4613,2974.0,2973.4,0.4881]
[1764122712055,4.01366233,2974.1,2973.4,0.4881]
[1764122712256,6.93772466,2974.1,2973.4,0.4881]
[1764122712459,6.93772466,2974.1,2973.4,0.4891]
[1764122713158,7.39925718,2974.1,2973.4,0.4891]
[1764122713361,6.72475718,2974.1,2973.4,0.4891]
[1764122713656,0.213,2974.0,2973.4,3.85222071]
[1764122714156,0.213,2974.0,2973.4,3.85224014]
[1764122714337,3.5755028,2974.0,2973.5,0.4881]
[1764122715254,0.213,2974.0,2973.5,0.4881]
[1764122715654,3.5754014,2974.1,2973.9,0.4509]
[1764122715857,3.5754014,2974.1,2973.5,0.4881]
[1764122716058,4.0369014,2974.1,2973.5,0.4881]
[1764122717038,0.4615,2974.0,2973.4,0.001]
[1764122717469,0.4615,2974.0,2973.5,0.4881]
[1764122717645,0.1801,2973.9,2973.4,0.001]
[1764122718034,0.4615,2973.8,2973.4,0.001]
[1764122718454,0.4383,2973.5,2973.4,0.001]
[1764122718772,3.82421446,2973.8,2973.4,0.001]
[1764122719277,0.4615,2973.7,2973.4,0.001]
[1764122721258,3.82432105,2973.7,2973.4,0.001]
[1764122721874,0.4615,2973.7,2973.4,0.001]
[1764122722267,0.4383,2973.5,2973.4,0.001]
[1764122722568,3.57583138,2973.7,2973.4,0.001]
[1764122722768,0.4894,2973.5,2973.4,0.001]
[1764122727797,0.9001,2973.5,2973.4,0.001]
[1764122727991,4.26314018,2973.5,2973.4,0.001]
[1764122730603,4.57823534,2973.5,2973.4,0.001]
[1764122731922,0.31509516,2973.5,2973.4,0.9473]
[1764122732207,0.213,2973.9,2973.4,0.9473]
[1764122732412,0.213,2973.9,2973.5,0.4536]
[1764122732600,0.213,2973.9,2973.8,0.4927]
[1764122733121,0.213,2973.9,2973.8,0.9463]
[1764122734117,3.99460082,2973.9,2973.5,0.4536]
[1764122734285,0.213,2973.9,2973.8,0.4927]
[1764122734804,0.213,2973.9,2973.8,0.9463]
[1764122736909,4.30084795,2974.2,2973.8,0.9463]
[1764122737212,4.30084795,2974.2,2973.9,0.4536]
[1764122737519,0.31510243,2974.1,2973.9,0.4536]
[1764122737920,0.93859411,2974.2,2973.9,0.4536]
[1764122738220,0.93859411,2974.2,2974.1,0.4927]
[1764122738516,0.52808048,2974.2,2974.1,0.4927]
[1764122738704,1.25367459,2974.2,2974.1,0.4927]
[1764122739319,4.61592326,2974.2,2974.1,0.4927]
[1764122739702,1.25367459,2974.2,2974.1,0.4927]
[1764122740222,0.52808048,2974.2,2974.1,0.4927]
[1764122740711,3.89032915,2974.2,2974.1,0.4927]
[1764122741114,3.89032915,2974.2,2973.9,0.4536]
[1764122741415,0.213,2974.2,2973.9,0.4536]
[1764122741621,3.57527642,2974.2,2973.9,0.4536]
[1764122741820,6.93755284,2974.2,2973.6,0.4536]
[1764122742024,3.57527642,2974.2,2973.4,3.3641532]
[1764122742202,4.04837642,2974.2,2973.6,3.81652491]
[1764122742398,3.57527642,2974.2,2973.6,0.4536]
[1764122742614,3.57527642,2974.2,2973.7,0.4536]
[1764122742992,4.04837642,2974.2,2973.7,0.4536]
[1764122743521,7.41065284,2974.2,2973.7,0.4536]
[1764122743925,0.213,2974.2,2973.7,0.4536]
[1764122744124,0.213,2974.2,2974.1,0.4927]
[1764122744416,3.89028554,2974.2,2973.7,0.4536]
[1764122744623,0.213,2974.2,2974.1,0.4927]
[1764122744789,3.36192584,2974.5,2974.1,0.5952]
[1764122744989,0.213,2974.5,2974.4,0.4927]
[1764122745219,0.52801005,2974.5,2974.4,0.4927]
[1764122745406,0.94701005,2974.5,2974.2,0.4536]
[1764122745608,0.0047,2974.3,2974.0,0.1025]
[1764122745808,0.0047,2974.3,2974.0,0.5561]
[1764122746619,0.6856,2974.5,2973.9,0.001]
[1764122746620,0.4149,2974.1,2973.9,0.001]
[1764122746799,0.4731,2974.3,2973.9,0.001]
[1764122747004,3.83512259,2974.4,2974.0,0.4927]
[1764122747404,3.36202259,2974.4,2974.3,0.4927]
[1764122747805,3.36202259,2974.4,2974.3,0.9463]
[1764122748404,3.36202259,2974.4,2974.3,0.4927]
[1764122749636,7.61634518,2974.4,2973.9,0.001]
[1764122749799,3.85142259,2974.4,2974.0,0.4536]
[1764122750498,4.25432259,2974.4,2974.0,0.4536]
[1764122750719,7.61634518,2974.4,2974.0,0.4536]
[1764122750898,7.61634518,2974.4,2973.9,0.001]
[1764122751098,7.61634518,2974.4,2973.9,0.4839]
[1764122751807,4.25432259,2974.4,2973.9,0.4839]
[1764122752104,3.57491076,2974.5,2974.3,0.4832]
[1764122752698,6.93682152,2974.5,2974.3,0.4832]
[1764122752916,0.3926,2974.4,2974.0,0.4829]
[1764122756233,3.75472921,2974.4,2974.0,0.4829]
[1764122759736,3.36212921,2974.4,2974.3,0.4832]
[1764122762223,4.06996909,2974.4,2974.1,0.1868]
[1764122762418,3.75472921,2974.4,2974.1,0.6489]
[1764122762708,3.82162921,2974.4,2973.9,0.001]
[1764122762916,3.57498578,2974.5,2974.3,0.6793]
[1764122763241,3.57498578,2974.5,2974.4,0.4903]